bitfinex/quotes_SOLUSD_20230113
["timestamp","ask_amount","ask_price","bid_price","bid_amount"]
[1673585087663,110.6108,17.138,17.114,137.5588]
[1673585087900,110.6108,17.138,17.114,280.28978132]
[1673585088107,110.6108,17.138,17.115,88.57922511]
[1673585088321,110.6108,17.138,17.116,20.96]
[1673585088634,111.553,17.145,17.12,46.4]
[1673585088847,111.553,17.145,17.121,25.77308]
[1673585089049,111.553,17.145,17.122,4.8128]
[1673585089270,10.0,17.144,17.123,0.96]
[1673585089585,10.0,17.144,17.123,143.69098132]
[1673585089792,10.0,17.144,17.124,65.04048765]
[1673585090127,10.0,17.144,17.125,20.96]
[1673585090505,10.0,17.144,17.126,65.04048765]
[1673585090719,10.0,17.144,17.127,20.96]
[1673585093030,111.553,17.145,17.127,20.96]
[1673585093245,111.553,17.145,17.127,109.53922511]
[1673585093786,111.553,17.145,17.127,44.49873746]
[1673585093997,111.553,17.145,17.13,46.15]
[1673585094188,111.553,17.145,17.131,0.96]
[1673585094837,111.553,17.145,17.131,24.49873746]
[1673585095569,109.0184,17.154,17.132,65.04048765]
[1673585095888,109.0184,17.154,17.133,0.96]
[1673585096286,109.0184,17.154,17.133,183.53068765]
[1673585096492,109.0184,17.154,17.133,207.06942511]
[1673585096738,109.0184,17.154,17.134,20.0]
[1673585096919,109.0184,17.154,17.135,0.96]
[1673585098302,0.96,17.152,17.134,20.0]
[1673585098613,10.0,17.151,17.133,182.57068765]
[1673585098829,66.4,17.15,17.133,117.5302]
[1673585099019,10.0,17.149,17.133,117.5302]
[1673585099231,20.0,17.148,17.133,117.5302]
[1673585099441,10.0,17.147,17.133,117.5302]
[1673585099655,20.0,17.146,17.133,117.5302]
[1673585100296,20.0,17.148,17.133,117.5302]
[1673585100490,10.0,17.147,17.13,46.15]
[1673585100706,20.0,17.146,17.124,117.2761]
[1673585100916,18.92,17.145,17.12,46.4]
[1673585101134,10.0,17.144,17.121,117.2761]
[1673585101451,0.96,17.143,17.121,117.2761]
[1673585101662,10.0,17.144,17.122,20.0]
[1673585102590,10.0,17.144,17.121,117.2761]
[1673585102591,46.4,17.14,17.121,117.2761]
[1673585102806,20.0,17.139,17.121,117.2761]
[1673585103021,46.4,17.14,17.121,117.2761]
[1673585103238,10.0,17.144,17.122,46.37848121]
[1673585103671,10.0,17.144,17.123,26.37848121]
[1673585103872,10.0,17.144,17.124,20.0]
[1673585104084,111.0007,17.145,17.124,20.0]
[1673585104401,111.0007,17.145,17.125,26.37848121]
[1673585104615,111.0007,17.145,17.126,20.0]
[1673585105025,111.0007,17.145,17.127,26.37848121]
[1673585105235,111.0007,17.145,17.126,20.0]
[1673585105444,10.0,17.144,17.125,20.0]
[1673585106196,10.0,17.144,17.125,46.37848121]
[1673585106597,10.0,17.144,17.125,20.0]
[1673585106811,0.96,17.143,17.122,46.37848121]
[1673585107014,20.96,17.143,17.122,26.37848121]
[1673585107236,46.4,17.14,17.11,46.02]
[1673585107446,10.0,17.138,17.112,117.9147]
[1673585107658,20.96,17.137,17.112,117.9147]
[1673585107870,10.0,17.135,17.112,117.9147]
[1673585110589,10.0,17.135,17.113,20.0]
[1673585112076,10.0,17.129,17.1,50.8328]
[1673585112277,10.0,17.127,17.102,119.3033]
[1673585112488,20.0,17.126,17.103,4.81815]
[1673585112708,10.0,17.125,17.103,4.81815]
[1673585113632,10.0,17.125,17.104,56.38697836]
[1673585114501,10.0,17.125,17.105,20.0]
[1673585115110,20.0,17.126,17.105,20.0]
[1673585115745,10.96,17.125,17.105,20.0]
[1673585116169,10.0,17.125,17.105,20.0]
[1673585116377,30.0,17.126,17.105,20.0]
[1673585116708,10.0,17.125,17.105,20.0]
[1673585117442,10.0,17.123,17.105,20.0]
[1673585117659,10.0,17.123,17.103,20.0]
[1673585118067,20.0,17.122,17.102,119.3033]
[1673585119108,10.0,17.119,17.102,119.3033]
[1673585119439,137.8765,17.118,17.102,119.3033]
[1673585121961,137.8765,17.118,17.103,0.96]
[1673585124900,117.8765,17.118,17.103,10.96]
[1673585125118,123.4076,17.127,17.104,20.0]
[1673585125516,123.4076,17.127,17.105,0.96]
[1673585125929,10.0,17.126,17.105,0.96]
[1673585126145,40.46683801,17.126,17.105,20.0]
[1673585126350,28.92,17.125,17.105,20.0]
[1673585127742,10.96,17.125,17.105,20.0]
[1673585127962,10.0,17.125,17.105,20.0]
[1673585129340,46.23,17.12,17.102,119.3033]
[1673585129556,20.96,17.119,17.09,56.4]
[1673585129744,138.5033,17.119,17.095,26.35731294]
[1673585129948,111.4967,17.118,17.096,10.0]
[1673585130171,30.0,17.117,17.094,10.0]
[1673585130385,30.0,17.117,17.097,82.7442913]
[1673585130811,20.0,17.117,17.097,82.7442913]
[1673585131023,20.0,17.117,17.1,46.15]
[1673585131423,0.96,17.116,17.098,56.38697836]
[1673585131748,0.96,17.116,17.092,109.9137]
[1673585131954,0.96,17.116,17.094,26.35731294]
[1673585132168,10.96,17.116,17.094,26.35731294]
[1673585133225,10.96,17.116,17.095,20.0]
[1673585134279,10.0,17.115,17.095,20.0]
[1673585134486,17.96,17.114,17.095,20.0]
[1673585134695,10.0,17.113,17.093,20.0]
[1673585135114,10.0,17.111,17.093,20.0]
[1673585136271,47.36,17.11,17.082,83.6394]
[1673585136461,242.7961,17.109,17.086,115.9773]
[1673585136671,20.0,17.108,17.088,56.38697836]
[1673585137114,20.0,17.108,17.089,26.35731294]
[1673585137535,20.0,17.108,17.089,82.7442913]
[1673585138174,10.96,17.107,17.089,56.38697836]
[1673585138352,10.0,17.117,17.09,46.4]
[1673585138563,118.9097,17.115,17.091,14.82153]
[1673585138778,118.9097,17.115,17.091,117.5658213]
[1673585138988,118.9097,17.115,17.092,82.7442913]
[1673585139211,118.9097,17.115,17.093,20.0]
[1673585139429,118.9097,17.115,17.094,0.96]
[1673585139638,10.0,17.114,17.094,27.31731294]
[1673585139844,10.0,17.114,17.095,20.0]
[1673585140163,10.0,17.114,17.095,102.7442913]
[1673585140376,10.0,17.114,17.095,76.38697836]
[1673585141201,0.96,17.113,17.095,76.38697836]
[1673585142065,10.0,17.114,17.096,0.96]
[1673585142374,10.0,17.114,17.097,0.96]
[1673585142786,10.0,17.114,17.095,76.38697836]
[1673585142995,10.0,17.114,17.096,0.96]
[1673585143204,10.0,17.114,17.097,0.96]
[1673585144291,10.0,17.114,17.095,56.38697836]
[1673585144469,46.33,17.11,17.09,46.4]
[1673585144790,146.4678,17.109,17.091,56.38697836]
[1673585144982,10.0,17.108,17.091,56.38697836]
[1673585145195,10.0,17.106,17.09,46.4]
[1673585146239,10.0,17.106,17.087,192.2681913]
[1673585146459,10.0,17.106,17.088,0.46]
[1673585146669,10.0,17.106,17.087,192.2681913]
[1673585147088,10.0,17.106,17.087,165.91087836]
[1673585147628,10.0,17.099,17.087,109.5239]
[1673585147835,10.0,17.099,17.082,56.38697836]
[1673585148044,10.0,17.099,17.083,20.0]
[1673585148241,10.0,17.099,17.083,46.35731294]
[1673585149101,10.0,17.099,17.083,20.0]
[1673585149921,10.0,17.097,17.084,0.96]
[1673585150133,20.0,17.096,17.083,0.96]
[1673585150442,20.0,17.096,17.082,56.38697836]
[1673585151819,20.0,17.096,17.083,0.96]
[1673585152030,20.0,17.096,17.082,56.38697836]
[1673585153194,20.0,17.098,17.082,56.38697836]
[1673585153517,10.0,17.097,17.082,56.38697836]
[1673585153718,20.0,17.096,17.082,56.38697836]
[1673585155620,20.0,17.097,17.082,56.38697836]
[1673585155816,10.0,17.096,17.082,56.38697836]
[1673585158959,10.0,17.096,17.074,41.83148287]
[1673585159171,18.92,17.095,17.075,20.0]
[1673585159396,10.0,17.094,17.075,20.0]
[1673585160129,10.0,17.094,17.075,76.38697836]
[1673585162240,10.0,17.094,17.076,0.96]
[1673585162983,10.0,17.094,17.075,56.38697836]
[1673585162984,10.0,17.092,17.075,56.38697836]
[1673585163182,56.4,17.09,17.07,46.02]
[1673585163502,10.0,17.088,17.07,102.40697836]
[1673585163813,20.0,17.087,17.07,102.40697836]
[1673585165066,20.0,17.087,17.06,46.63]
[1673585165261,46.23,17.08,17.062,108.8767]
[1673585165480,46.23,17.08,17.06,46.63]
[1673585165481,20.0,17.079,17.06,46.63]
[1673585166105,46.23,17.08,17.06,72.98731294]
[1673585166334,115.8215,17.082,17.06,121.8628913]
[1673585166646,46.4,17.08,17.06,121.8628913]
[1673585166871,10.0,17.079,17.06,95.50557836]
[1673585167273,56.4,17.08,17.06,95.50557836]
[1673585167483,162.0894,17.08,17.06,95.50557836]
[1673585167716,30.0,17.079,17.06,95.50557836]
[1673585168226,10.0,17.078,17.06,95.50557836]
[1673585168444,20.0,17.077,17.06,95.50557836]
[1673585169497,10.0,17.076,17.06,95.50557836]
[1673585169919,10.0,17.076,17.06,48.87557836]
[1673585171708,20.0,17.077,17.057,118.6723]
[1673585171919,20.0,17.077,17.06,72.37731294]
[1673585172131,30.0,17.079,17.06,72.37731294]
[1673585173389,20.0,17.079,17.06,72.37731294]
[1673585174129,20.0,17.079,17.061,26.35731294]
[1673585174755,30.0,17.079,17.061,26.35731294]
[1673585174968,10.0,17.078,17.061,26.35731294]
[1673585175394,20.0,17.077,17.061,26.35731294]
[1673585175796,20.0,17.077,17.06,46.02]
[1673585176429,46.4,17.08,17.061,48.87557836]
[1673585176645,10.0,17.081,17.062,20.0]
[1673585176843,30.46683801,17.083,17.062,20.0]
[1673585177055,116.9916,17.086,17.062,20.0]
[1673585177056,10.0,17.085,17.062,20.0]
[1673585177477,10.0,17.085,17.063,108.0875]
[1673585177695,10.0,17.085,17.064,20.96]
[1673585177898,46.33,17.08,17.064,0.96]
[1673585178115,147.45843801,17.086,17.064,0.96]
[1673585178316,116.9916,17.086,17.065,0.96]
[1673585178542,10.0,17.085,17.065,0.96]
[1673585179154,30.46683801,17.084,17.065,0.96]
[1673585179373,30.46683801,17.084,17.066,0.96]
[1673585179792,30.46683801,17.084,17.067,0.96]
[1673585180015,30.46683801,17.084,17.065,20.0]
[1673585181372,116.9916,17.086,17.065,20.0]
[1673585181576,147.45843801,17.086,17.066,0.96]
[1673585181995,10.0,17.085,17.066,0.96]
[1673585183674,10.0,17.085,17.064,117.0527]
[1673585183886,10.0,17.085,17.047,38.52627086]
[1673585183887,38.92,17.081,17.047,10.0]
[1673585184118,56.23,17.08,17.057,10.0]
[1673585184436,20.0,17.079,17.057,10.0]
[1673585184752,20.0,17.079,17.057,107.15539838]
[1673585185149,20.0,17.079,17.06,46.02]
[1673585185359,20.0,17.081,17.062,10.0]
[1673585185587,20.0,17.081,17.063,0.96]
[1673585185787,20.0,17.081,17.063,10.96]
[1673585185997,116.9916,17.086,17.063,10.96]
[1673585185998,116.9916,17.086,17.064,0.96]
[1673585186317,116.9916,17.086,17.07,46.02]
[1673585186731,116.9916,17.086,17.071,1.92]
[1673585187155,115.8215,17.091,17.071,21.92]
[1673585187587,115.8215,17.091,17.072,10.0]
[1673585187918,115.8215,17.091,17.073,47.31731294]
[1673585188323,115.8215,17.091,17.074,26.35731294]
[1673585188532,115.8215,17.091,17.075,20.0]
[1673585188737,115.8215,17.091,17.076,0.96]
[1673585193066,115.8215,17.091,17.075,20.0]
[1673585193286,10.0,17.09,17.074,20.0]
[1673585193894,115.8215,17.091,17.074,20.0]
[1673585195073,10.0,17.09,17.074,20.0]
[1673585197070,0.96,17.089,17.074,20.0]
[1673585197374,10.0,17.09,17.074,20.0]
[1673585198337,10.0,17.09,17.075,0.96]
[1673585199896,10.0,17.09,17.076,0.96]
[1673585200107,10.0,17.09,17.074,20.0]
[1673585203800,115.8215,17.091,17.074,20.0]
[1673585204867,115.8215,17.091,17.075,0.96]
[1673585206236,115.8215,17.091,17.076,26.35731294]
[1673585206416,115.8215,17.091,17.077,20.96]
[1673585207376,115.8215,17.091,17.077,47.31731294]
[1673585208110,115.8215,17.091,17.078,26.35731294]
[1673585208311,115.8215,17.091,17.079,0.96]
[1673585208729,115.8215,17.091,17.08,26.35731294]
[1673585209464,115.8215,17.091,17.081,0.96]
[1673585210500,115.8215,17.091,17.082,0.96]
[1673585210713,115.8215,17.091,17.083,0.96]
[1673585211914,149.1941,17.1,17.083,0.96]
[1673585212224,10.0,17.097,17.083,0.96]
[1673585213275,10.0,17.097,17.08,31.15]
[1673585213491,31.15,17.09,17.073,97.15539838]
[1673585213793,31.15,17.09,17.067,114.3059]
[1673585213794,20.96,17.089,17.067,114.3059]
[1673585214017,20.0,17.089,17.068,26.35731294]
[1673585214524,10.0,17.088,17.068,26.35731294]
[1673585214733,20.0,17.087,17.068,26.35731294]
[1673585215378,10.0,17.088,17.068,26.35731294]
[1673585215569,108.1234,17.091,17.071,10.0]
[1673585215896,108.1234,17.091,17.072,26.35731294]
[1673585216110,108.1234,17.091,17.073,20.0]
[1673585216519,108.1234,17.091,17.074,135.53904132]
[1673585216718,159.1941,17.1,17.075,20.0]
[1673585216928,159.1941,17.1,17.075,224.4494413]
[1673585217138,159.1941,17.1,17.076,82.4328913]
[1673585217368,159.1941,17.1,17.077,20.96]
[1673585217582,159.1941,17.1,17.077,102.4328913]
[1673585217774,159.1941,17.1,17.078,81.4728913]
[1673585218091,159.1941,17.1,17.079,0.96]
[1673585218425,159.1941,17.1,17.08,0.96]
[1673585218617,159.1941,17.1,17.081,0.96]
[1673585219035,149.1941,17.1,17.081,0.96]
[1673585219255,20.0,17.098,17.081,0.96]
[1673585219990,149.1941,17.1,17.081,27.31731294]
[1673585220204,118.0441,17.1,17.082,20.0]
[1673585220522,149.1941,17.1,17.081,55.11557836]
[1673585220922,149.1941,17.1,17.082,0.96]
[1673585221344,20.0,17.099,17.082,0.96]
[1673585222306,20.0,17.099,17.082,10.96]
[1673585222516,118.0441,17.1,17.083,20.0]
[1673585222736,118.0441,17.1,17.083,137.8958]
[1673585222919,118.0441,17.1,17.084,27.31731294]
[1673585223129,118.0441,17.1,17.085,20.0]
[1673585223339,118.0441,17.1,17.086,0.96]
[1673585224826,109.4614,17.109,17.086,10.96]
[1673585225044,220.5904,17.109,17.09,31.15]
[1673585225463,220.5904,17.109,17.091,26.35731294]
[1673585225674,220.5904,17.109,17.09,31.15]
[1673585225989,109.4614,17.109,17.091,0.96]
[1673585226293,109.4614,17.109,17.085,20.0]
[1673585226294,31.42683801,17.108,17.08,30.98]
[1673585226512,10.0,17.107,17.084,55.10617731]
[1673585226725,40.46683801,17.107,17.084,81.46349025]
[1673585227467,10.0,17.107,17.085,55.10617731]
[1673585228097,10.0,17.107,17.085,81.46349025]
[1673585229037,10.0,17.107,17.085,55.10617731]
[1673585229357,10.0,17.107,17.086,20.0]
[1673585229358,18.92,17.106,17.086,20.0]
[1673585229572,31.15,17.1,17.081,20.0]
[1673585229878,31.15,17.1,17.076,113.175]
[1673585229879,28.92,17.099,17.076,113.175]
[1673585230095,10.0,17.098,17.076,113.175]
[1673585230291,38.92,17.097,17.076,113.175]
[1673585230504,31.15,17.09,17.06,30.85]
[1673585230710,20.96,17.089,17.067,113.5149]
[1673585231128,10.0,17.088,17.067,113.5149]
[1673585231339,38.92,17.087,17.067,113.5149]
[1673585231759,38.92,17.087,17.06,30.85]
[1673585231967,31.15,17.08,17.06,30.85]
[1673585232184,48.92,17.079,17.055,113.5149]
[1673585232392,48.92,17.079,17.057,26.35731294]
[1673585233250,48.92,17.079,17.055,113.5149]
[1673585233659,48.92,17.079,17.056,20.0]
[1673585233974,10.0,17.078,17.056,20.0]
[1673585234186,38.92,17.077,17.056,20.0]
[1673585234407,10.0,17.076,17.056,20.0]
[1673585234612,17.96,17.075,17.055,113.5149]
[1673585236065,17.96,17.075,17.05,31.03]
[1673585236294,30.96,17.074,17.05,31.03]
[1673585236610,10.0,17.072,17.05,31.03]
[1673585236831,21.92,17.071,17.05,31.03]
[1673585237026,10.0,17.07,17.05,31.03]
[1673585237350,20.0,17.069,17.05,31.03]
[1673585237564,20.0,17.071,17.05,31.03]
[1673585237986,30.0,17.072,17.05,31.03]
[1673585238216,30.0,17.072,17.051,0.96]
[1673585238610,20.0,17.072,17.051,0.96]
[1673585238945,10.0,17.072,17.052,26.35731294]
[1673585239256,10.0,17.072,17.05,31.03]
[1673585239566,69.38683801,17.071,17.05,31.03]
[1673585239761,10.0,17.07,17.05,31.03]
[1673585239976,38.92,17.069,17.05,31.03]
[1673585240409,10.0,17.068,17.05,31.03]
[1673585240712,20.0,17.067,17.05,31.03]
[1673585240932,10.0,17.066,17.05,31.03]
[1673585241445,10.0,17.066,17.051,0.96]
[1673585241651,10.0,17.066,17.05,31.03]
[1673585241971,10.0,17.066,17.043,112.3262]
[1673585242182,10.0,17.066,17.044,19.5]
[1673585243120,10.0,17.066,17.043,112.3262]
[1673585243438,10.0,17.066,17.04,31.17]
[1673585243439,10.96824927,17.064,17.04,31.17]
[1673585243639,37.96,17.063,17.04,46.76]
[1673585243845,0.96,17.062,17.04,46.76]
[1673585244072,0.96,17.061,17.04,46.76]
[1673585244276,20.0,17.061,17.04,73.11731294]
[1673585244707,17.96,17.06,17.04,73.11731294]
[1673585245024,10.0,17.058,17.04,73.11731294]
[1673585245235,20.0,17.057,17.04,73.11731294]
[1673585246157,20.0,17.058,17.04,46.76]
[1673585246699,20.0,17.058,17.04,73.11731294]
[1673585247099,20.0,17.058,17.041,0.96]
[1673585247750,119.4226,17.064,17.041,0.96]
[1673585247965,10.0,17.063,17.042,26.35731294]
[1673585248159,10.0,17.063,17.043,20.0]
[1673585248373,10.0,17.063,17.044,0.96]
[1673585248796,119.4226,17.064,17.044,0.96]
[1673585249010,119.4226,17.064,17.044,27.31731294]
[1673585249220,119.4226,17.064,17.045,20.0]
[1673585249666,119.4226,17.064,17.046,27.31731294]
[1673585249993,118.9226,17.064,17.046,27.31731294]
[1673585250181,118.9226,17.064,17.047,46.35731294]
[1673585250509,118.9226,17.064,17.05,46.77]
[1673585250932,118.9226,17.064,17.051,1.92]
[1673585251665,10.0,17.063,17.047,20.0]
[1673585251852,10.0,17.063,17.047,26.35731294]
[1673585252274,10.0,17.063,17.046,20.0]
[1673585252509,10.0,17.063,17.046,46.35731294]
[1673585253245,10.0,17.063,17.046,20.0]
[1673585254930,10.0,17.063,17.047,0.96]
[1673585255449,10.0,17.063,17.046,20.0]
[1673585255666,10.0,17.061,17.041,20.0]
[1673585256485,10.0,17.061,17.041,131.7644]
[1673585258388,10.0,17.063,17.042,37.31731294]
[1673585258580,10.0,17.063,17.043,20.0]
[1673585258791,10.0,17.063,17.044,0.96]
[1673585259226,118.9226,17.064,17.045,26.35731294]
[1673585259646,118.9226,17.064,17.046,20.0]
[1673585259864,118.9226,17.064,17.047,0.96]
[1673585260280,118.9226,17.064,17.047,27.31731294]
[1673585260488,10.0,17.063,17.047,27.31731294]
[1673585260910,118.9226,17.064,17.047,27.31731294]
[1673585262281,118.9226,17.064,17.047,26.35731294]
[1673585262493,10.0,17.063,17.047,26.35731294]
[1673585262892,10.0,17.063,17.041,111.7644]
[1673585263102,46.88,17.06,17.041,111.7644]
[1673585263312,37.96,17.059,17.04,46.76]
[1673585263545,37.96,17.059,17.031,117.8168]
[1673585263546,0.96,17.058,17.031,117.8168]
[1673585263741,10.96,17.057,17.035,26.35731294]
[1673585263941,111.052,17.058,17.035,26.35731294]
[1673585264150,20.0,17.057,17.036,10.0]
[1673585264377,20.0,17.057,17.035,40.45787415]
[1673585264592,30.0,17.057,17.035,40.45787415]
[1673585264808,30.0,17.057,17.037,26.35731294]
[1673585265008,30.0,17.057,17.038,0.96]
[1673585265430,20.0,17.057,17.038,27.31731294]
[1673585265644,20.0,17.057,17.039,119.7711]
[1673585265839,118.9226,17.064,17.04,47.72]
[1673585266057,231.4373,17.064,17.041,10.0]
[1673585266253,231.4373,17.064,17.041,56.35731294]
[1673585266466,10.0,17.059,17.04,87.21787415]
[1673585266677,10.0,17.059,17.04,46.76]
[1673585266886,40.46683801,17.059,17.04,46.76]
[1673585267097,10.0,17.059,17.04,46.76]
[1673585267322,17.96,17.058,17.04,46.76]
[1673585267512,20.0,17.057,17.04,46.76]
[1673585267726,20.0,17.057,17.041,0.96]
[1673585268154,20.0,17.059,17.04,73.11731294]
[1673585268377,20.0,17.059,17.04,46.76]
[1673585270159,10.0,17.058,17.04,46.76]
[1673585270363,20.0,17.057,17.04,46.76]
[1673585270989,20.0,17.058,17.04,46.76]
[1673585271426,20.0,17.058,17.041,0.96]
[1673585272695,20.0,17.058,17.041,10.96]
[1673585272912,20.0,17.059,17.041,0.96]
[1673585273122,10.0,17.058,17.041,0.96]
[1673585273337,50.46683801,17.057,17.042,0.96]
[1673585273649,50.46683801,17.057,17.039,119.7711]
[1673585274157,20.0,17.057,17.039,119.7711]
[1673585274370,30.46683801,17.057,17.039,119.7711]
[1673585274584,20.0,17.058,17.039,119.7711]
[1673585274794,20.0,17.059,17.04,1.92]
[1673585275204,20.0,17.059,17.04,11.92]
[1673585275836,20.0,17.059,17.04,1.92]
[1673585276271,0.96,17.058,17.04,1.92]
[1673585276468,10.0,17.057,17.039,119.7711]
[1673585276682,30.46683801,17.057,17.039,119.7711]
[1673585277002,17.96,17.056,17.039,119.7711]
[1673585277410,48.42683801,17.056,17.039,119.7711]
[1673585277620,20.0,17.059,17.039,119.7711]
[1673585277841,30.46683801,17.058,17.039,119.7711]
[1673585278258,20.0,17.057,17.039,119.7711]
[1673585278670,20.0,17.057,17.04,0.96]
[1673585279106,20.0,17.057,17.039,119.7711]
[1673585280473,30.46683801,17.061,17.04,56.77]
[1673585280686,118.9226,17.064,17.041,24.83568]
[1673585280900,118.9226,17.064,17.042,5.79539]
[1673585281227,118.9226,17.064,17.043,20.0]
[1673585281525,118.9226,17.064,17.044,26.35731294]
[1673585281743,118.9226,17.064,17.045,20.0]
[1673585282163,118.9226,17.064,17.046,26.35731294]
[1673585282374,118.9226,17.064,17.047,20.0]
[1673585282781,118.9226,17.064,17.047,46.35731294]
[1673585282986,118.9226,17.064,17.048,0.96]
[1673585284267,118.9226,17.064,17.049,26.35731294]
[1673585284879,118.9226,17.064,17.05,0.96]
[1673585285318,46.88,17.07,17.05,0.96]
[1673585285515,46.88,17.07,17.05,73.23731294]
[1673585285724,46.88,17.07,17.051,20.96]
[1673585285942,10.0,17.069,17.051,20.96]
[1673585286158,10.0,17.069,17.048,109.5217]
[1673585286683,10.0,17.068,17.044,51.78888517]
[1673585286892,18.92,17.067,17.041,112.5768]
[1673585287084,10.0,17.066,17.042,26.35731294]
[1673585287297,18.92,17.065,17.042,26.35731294]
[1673585287736,114.9583,17.064,17.042,26.35731294]
[1673585288142,114.9583,17.064,17.043,4.83511]
[1673585288463,114.9583,17.064,17.044,61.28087423]
[1673585288681,114.9583,17.064,17.045,0.96]
[1673585288888,114.9583,17.064,17.045,27.31731294]
[1673585289097,114.9583,17.064,17.046,46.35731294]
[1673585289418,114.9583,17.064,17.047,10.96]
[1673585289611,114.9583,17.064,17.047,37.31731294]
[1673585289824,114.9583,17.064,17.048,26.35731294]
[1673585293826,110.7279,17.075,17.05,10.0]
[1673585294031,110.7279,17.075,17.051,130.035]
[1673585294247,10.0,17.074,17.051,184.18266795]
[1673585294470,10.0,17.074,17.051,157.82535501]
[1673585294672,10.0,17.074,17.052,27.79035501]
[1673585294885,10.0,17.072,17.053,20.0]
[1673585295308,10.0,17.072,17.053,47.79035501]
[1673585296051,10.0,17.074,17.053,47.79035501]
[1673585296363,91.7935,17.075,17.054,1.92]
[1673585296563,46.88,17.07,17.054,11.92]
[1673585296774,46.88,17.07,17.055,20.0]
[1673585296991,46.88,17.07,17.053,47.79035501]
[1673585297202,46.88,17.07,17.054,28.75035501]
[1673585297404,46.88,17.07,17.055,20.0]
[1673585297930,46.88,17.07,17.056,0.96]
[1673585298549,46.88,17.07,17.051,110.035]
[1673585298760,38.92,17.069,17.051,110.035]
[1673585298976,10.0,17.068,17.051,110.035]
[1673585299197,10.0,17.066,17.051,110.035]
[1673585300344,10.0,17.066,17.052,0.96]
[1673585301515,20.0,17.067,17.052,0.96]
[1673585301714,20.0,17.067,17.051,110.035]
[1673585303297,20.0,17.067,17.052,10.96]
[1673585303500,17.96,17.069,17.052,10.96]
[1673585303501,20.0,17.068,17.052,10.96]
[1673585303723,20.0,17.068,17.052,0.96]
[1673585304131,20.0,17.069,17.052,0.96]
[1673585305070,10.0,17.068,17.052,0.96]
[1673585305278,20.0,17.067,17.052,0.96]
[1673585307722,20.0,17.069,17.052,0.96]
[1673585307910,20.0,17.069,17.053,10.0]
[1673585308330,20.0,17.069,17.054,0.96]
[1673585308874,19.9,17.069,17.054,0.96]
[1673585311924,19.9,17.069,17.055,0.96]
[1673585312546,117.3015,17.073,17.056,27.79035501]
[1673585312758,117.3015,17.073,17.057,20.0]
[1673585312959,117.3015,17.073,17.058,10.0]
[1673585313170,117.3015,17.073,17.058,37.79035501]
[1673585313403,117.3015,17.073,17.059,28.75035501]
[1673585313796,117.3015,17.073,17.06,27.79035501]
[1673585314234,117.3015,17.073,17.058,10.0]
[1673585314451,117.3015,17.073,17.059,27.79035501]